bitfinex/quotes_BTCUSD_20241211
["timestamp","ask_amount","ask_price","bid_price","bid_amount"]
[1733906469717,0.00949179,98204.0,98200.0,0.00411643]
[1733906469938,0.0053174,98205.0,98200.0,0.00411643]
[1733906470151,0.00949151,98204.0,98201.0,0.203663]
[1733906470362,0.00949151,98204.0,98201.0,0.63975124]
[1733906470581,0.0053174,98205.0,98203.0,0.203659]
[1733906470829,0.0053174,98205.0,98204.0,0.18884115]
[1733906473366,0.0053174,98205.0,98204.0,0.18984115]
[1733906473787,0.0053174,98205.0,98204.0,0.19084115]
[1733906474450,0.0053174,98205.0,98204.0,0.08551591]
[1733906474451,0.01481704,98205.0,98204.0,0.08551591]
[1733906476383,0.01481704,98205.0,98204.0,0.23754115]
[1733906478075,0.0053174,98205.0,98204.0,0.24794404]
[1733906479594,0.0053174,98205.0,98204.0,0.28123689]
[1733906479806,0.203578,98243.0,98218.0,0.1257]
[1733906479807,0.01521711,98233.0,98218.0,0.1257]
[1733906480011,0.01521711,98233.0,98219.0,0.18362524]
[1733906480226,0.21940582,98243.0,98219.0,0.18362524]
[1733906480227,0.01521711,98232.0,98219.0,0.18362524]
[1733906480491,0.00540147,98220.0,98219.0,0.4245635]
[1733906480696,0.00540147,98220.0,98219.0,0.4715635]
[1733906480902,0.00640147,98220.0,98219.0,0.4715635]
[1733906481757,0.00950321,98238.0,98219.0,0.2926375]
[1733906481957,0.01521037,98244.0,98238.0,0.1253]
[1733906482158,0.00950231,98243.0,98241.0,0.20358]
[1733906482359,0.01521037,98248.0,98243.0,0.203576]
[1733906482579,8.58e-05,98250.0,98244.0,0.10532524]
[1733906482580,0.0094972,98247.0,98244.0,0.10532524]
[1733906482782,0.0094972,98247.0,98244.0,0.10934142]
[1733906482783,0.0094972,98246.0,98244.0,0.10934142]
[1733906482991,0.00531523,98247.0,98245.0,0.203572]
[1733906483201,0.00531523,98247.0,98246.0,0.00401592]
[1733906485076,0.00454903,98247.0,98246.0,0.00401592]
[1733906485495,0.00454903,98247.0,98246.0,0.00601592]
[1733906485707,0.00454903,98247.0,98246.0,0.00701592]
[1733906485909,0.00454903,98247.0,98246.0,0.23994116]
[1733906486491,0.00454903,98247.0,98246.0,0.27323401]
[1733906488160,0.00378283,98247.0,98246.0,0.27323401]
[1733906488776,0.00378283,98247.0,98246.0,0.42323401]
[1733906491098,0.00378283,98247.0,98246.0,0.42223401]
[1733906491519,0.00378283,98247.0,98246.0,0.42323401]
[1733906491730,0.00378283,98247.0,98246.0,0.42123401]
[1733906491978,0.00478283,98247.0,98246.0,0.42923401]
[1733906492215,0.00378283,98247.0,98246.0,0.42423401]
[1733906492690,0.00478283,98247.0,98246.0,0.42823401]
[1733906492900,0.00378283,98247.0,98246.0,0.42023401]
[1733906493134,0.00378283,98247.0,98246.0,0.42323401]
[1733906493361,0.00378283,98247.0,98246.0,0.42023401]
[1733906494202,0.00301663,98247.0,98246.0,0.42023401]
[1733906494630,0.00301663,98247.0,98246.0,0.42523401]
[1733906494834,0.00301663,98247.0,98246.0,0.42823401]
[1733906495039,0.00301663,98247.0,98246.0,0.42023401]
[1733906495468,0.00301663,98247.0,98246.0,0.43223401]
[1733906495469,0.00401663,98247.0,98246.0,0.43223401]
[1733906497530,0.00401663,98247.0,98246.0,0.43220217]
[1733906500076,8.58e-05,98250.0,98246.0,0.43220217]
[1733906500077,8.58e-05,98250.0,98249.0,0.03329285]
[1733906500284,8.58e-05,98250.0,98249.0,0.41023571]
[1733906500487,8.58e-05,98250.0,98249.0,0.41310897]
[1733906501340,8.58e-05,98250.0,98249.0,0.41910897]
[1733906501521,0.0010858,98250.0,98249.0,0.42810897]
[1733906503198,0.0003196,98250.0,98249.0,0.42810897]
[1733906505486,0.0003196,98250.0,98249.0,0.43833572]
[1733906506196,0.00486651,98257.0,98256.0,0.203549]
[1733906506385,0.00486651,98257.0,98256.0,0.58967424]
[1733906506584,0.00486651,98257.0,98256.0,0.62685259]
[1733906506937,0.00486651,98257.0,98256.0,0.59355974]
[1733906507166,0.00486651,98257.0,98256.0,0.62685259]
[1733906507374,0.0143553,98257.0,98256.0,0.62685259]
[1733906507572,0.0143553,98257.0,98256.0,0.63585259]
[1733906507935,0.0143553,98257.0,98256.0,0.63985259]
[1733906508548,0.0143553,98257.0,98256.0,0.63585259]
[1733906508980,0.0143553,98257.0,98256.0,0.63085259]
[1733906509181,0.02880267,98257.0,98256.0,0.63585259]
[1733906510657,0.02880267,98257.0,98256.0,0.59855974]
[1733906510815,0.02880267,98257.0,98256.0,0.63385259]
[1733906511355,0.02880267,98257.0,98256.0,0.62885259]
[1733906511589,0.03516632,98257.0,98256.0,0.48585259]
[1733906512147,0.02880267,98257.0,98256.0,0.48585259]
[1733906512348,0.02880267,98257.0,98256.0,0.48985259]
[1733906512567,0.02880267,98257.0,98256.0,0.45655974]
[1733906512753,0.02803647,98257.0,98256.0,0.12221074]
[1733906514085,0.02803647,98257.0,98256.0,0.11821074]
[1733906514312,0.02803647,98257.0,98256.0,0.12021074]
[1733906514514,0.02803647,98257.0,98256.0,0.11121074]
[1733906514641,0.04387132,98257.0,98256.0,0.10921074]
[1733906515104,0.02803647,98257.0,98256.0,0.11521074]
[1733906515258,0.02803647,98257.0,98256.0,0.11121074]
[1733906515464,0.04387132,98257.0,98256.0,0.11121074]
[1733906515805,0.02803647,98257.0,98256.0,0.11721074]
[1733906516876,0.02803647,98257.0,98256.0,0.23691074]
[1733906517276,0.02803647,98257.0,98256.0,0.42620359]
[1733906517685,0.01283502,98257.0,98256.0,0.42620359]
[1733906518320,0.00333411,98257.0,98256.0,0.43433836]
[1733906518531,0.00333411,98257.0,98256.0,0.42833836]
[1733906518737,0.00333411,98257.0,98256.0,0.44333836]
[1733906518951,0.00333411,98257.0,98256.0,0.46332308]
[1733906522213,0.00333411,98257.0,98256.0,0.30750359]
[1733906522719,0.00333411,98257.0,98256.0,0.15750359]
[1733906522878,0.00333411,98257.0,98256.0,0.30750359]
[1733906523273,0.00333411,98257.0,98256.0,0.41620359]
[1733906523487,0.00333411,98257.0,98256.0,0.42920359]
[1733906523926,0.00333411,98257.0,98256.0,0.42020359]
[1733906524176,0.00333411,98257.0,98256.0,0.42320359]
[1733906524386,0.00333411,98257.0,98256.0,0.42020359]
[1733906524934,0.00333411,98257.0,98256.0,0.42920359]
[1733906525346,0.00333411,98257.0,98256.0,0.42520359]
[1733906526687,0.00333411,98257.0,98256.0,0.41620359]
[1733906526926,0.00333411,98257.0,98256.0,0.43020359]
[1733906527176,0.00333411,98257.0,98256.0,0.42120359]
[1733906527603,0.00333411,98257.0,98256.0,0.42520359]
[1733906527820,0.00333411,98257.0,98256.0,0.41620359]
[1733906528284,0.00333411,98257.0,98256.0,0.42520359]
[1733906528706,0.00333411,98257.0,98256.0,0.43020359]
[1733906529652,0.00333411,98257.0,98256.0,0.56488692]
[1733906530367,0.00256791,98257.0,98256.0,0.56488692]
[1733906531332,0.00256791,98257.0,98256.0,0.43020359]
[1733906534215,0.00256791,98257.0,98256.0,0.95801544]
[1733906535945,0.00256791,98257.0,98256.0,1.09283103]
[1733906537092,0.00256791,98257.0,98256.0,0.56501918]
[1733906537847,0.00256791,98257.0,98256.0,0.43020359]
[1733906538267,0.00256791,98257.0,98256.0,0.56501918]
[1733906538482,0.00256791,98257.0,98256.0,0.43020359]
[1733906540534,0.00256791,98257.0,98256.0,0.30650359]
[1733906540776,0.00256791,98257.0,98256.0,0.12321074]
[1733906541264,0.00256791,98257.0,98256.0,0.15650359]
[1733906541959,0.00256791,98257.0,98256.0,0.12321074]
[1733906543925,0.00256791,98257.0,98256.0,0.21316305]
[1733906544127,0.00256791,98257.0,98256.0,0.41847885]
[1733906544330,0.00256791,98257.0,98256.0,0.43360359]
[1733906544531,0.03,98268.0,98256.0,0.43360359]
[1733906544532,0.02165371,98268.0,98256.0,0.43360359]
[1733906544732,0.02136312,98268.0,98267.0,0.23681985]
[1733906544987,0.02136312,98268.0,98267.0,0.34214509]
[1733906545187,0.02136312,98268.0,98267.0,0.34602017]
[1733906545550,0.02667615,98268.0,98267.0,0.34602017]
[1733906546007,0.02667615,98268.0,98267.0,0.42662017]
[1733906546839,0.02667615,98268.0,98267.0,0.43362017]
[1733906547883,0.02590995,98268.0,98267.0,0.43362017]
[1733906548510,0.02590995,98268.0,98267.0,0.43662017]
[1733906551452,0.02590995,98268.0,98267.0,0.44676021]
[1733906553952,0.02514375,98268.0,98267.0,0.44676021]
[1733906556411,0.02514375,98268.0,98267.0,0.64556021]
[1733906556821,0.02437755,98268.0,98267.0,0.64556021]
[1733906557638,0.02437755,98268.0,98267.0,0.64256021]
[1733906558056,0.02437755,98268.0,98267.0,0.64556021]
[1733906558469,0.02437755,98268.0,98267.0,0.64256021]
[1733906558896,0.02437755,98268.0,98267.0,0.63556021]
[1733906559113,0.02437755,98268.0,98267.0,0.64356021]
[1733906559328,0.2186,98278.0,98277.0,1.0646107]
[1733906559533,0.2186,98278.0,98277.0,1.29683594]
[1733906559770,0.2186,98278.0,98277.0,1.30075565]
[1733906559992,0.18244523,98278.0,98277.0,1.30075565]
[1733906560200,0.0004,98289.0,98287.0,0.51327785]
[1733906560405,0.0004,98289.0,98287.0,0.61860309]
[1733906560609,0.0004,98289.0,98287.0,0.75773719]
[1733906560610,0.00575312,98288.0,98287.0,0.75773719]
[1733906561437,0.00575312,98288.0,98287.0,0.62307168]
[1733906562701,0.00575312,98288.0,98287.0,0.63207168]
[1733906563124,0.00575312,98288.0,98287.0,0.64107168]
[1733906563541,0.00575312,98288.0,98287.0,0.72176388]
[1733906563788,0.00575312,98288.0,98287.0,0.73076388]
[1733906564013,0.00575312,98288.0,98287.0,0.72176388]
[1733906564217,0.00575312,98288.0,98287.0,1.24057573]
[1733906564626,0.00575312,98288.0,98287.0,1.15988353]
[1733906565273,0.00575312,98288.0,98287.0,1.16888353]
[1733906565896,0.00575312,98288.0,98287.0,1.18950711]
[1733906568222,0.00575312,98288.0,98287.0,1.33950711]
[1733906568631,0.00575312,98288.0,98287.0,1.18050711]
[1733906568841,0.00575312,98288.0,98287.0,1.37300692]
[1733906569477,0.00575312,98288.0,98287.0,1.38316539]
[1733906569678,0.00575312,98288.0,98287.0,1.34066558]
[1733906569931,0.00575312,98288.0,98287.0,1.33166558]
[1733906570133,0.00575312,98288.0,98287.0,1.34066558]
[1733906570554,0.00575312,98288.0,98287.0,1.19966558]
[1733906571181,0.00575312,98288.0,98287.0,1.19066558]
[1733906571382,0.00575312,98288.0,98287.0,1.19966558]
[1733906571846,0.00498692,98288.0,98287.0,1.19966558]
[1733906572260,0.00498692,98288.0,98287.0,1.15416558]
[1733906572719,0.00498692,98288.0,98287.0,1.14516558]
[1733906573141,0.00498692,98288.0,98287.0,1.15416558]
[1733906573346,0.00498692,98288.0,98287.0,1.14516558]
[1733906573552,0.00498692,98288.0,98287.0,1.13616558]
[1733906573777,0.00498692,98288.0,98287.0,1.15316558]
[1733906574410,0.00498692,98288.0,98287.0,1.14516558]
[1733906574612,0.00498692,98288.0,98287.0,1.15216558]
[1733906574817,0.00470283,98288.0,98287.0,1.15216558]
[1733906575022,0.00470283,98288.0,98287.0,1.14316558]
[1733906575683,0.00470283,98288.0,98287.0,1.19896558]
[1733906576307,0.00470283,98288.0,98287.0,1.28854764]
[1733906576522,0.00470283,98288.0,98287.0,1.19896558]
[1733906576729,0.00470283,98288.0,98287.0,1.23471539]
[1733906578031,0.00470283,98288.0,98287.0,1.21871539]
[1733906578451,0.0044244,98288.0,98287.0,1.23471539]
[1733906578656,0.0044244,98288.0,98287.0,1.22571539]
[1733906578867,0.0044244,98288.0,98287.0,1.21871539]
[1733906579111,0.0044244,98288.0,98287.0,1.19196558]
[1733906579321,0.0044244,98288.0,98287.0,1.18296558]
[1733906579532,0.0044244,98288.0,98287.0,1.19196558]
[1733906580172,0.0044244,98288.0,98287.0,1.19896558]
[1733906580814,0.0044244,98288.0,98287.0,1.19196558]
[1733906581023,0.0044244,98288.0,98287.0,1.19896558]
[1733906581701,0.0044244,98288.0,98287.0,1.15216558]
[1733906581911,0.0044244,98288.0,98287.0,1.050542]
[1733906582123,0.00365983,98288.0,98287.0,1.050542]
[1733906582345,0.00365983,98288.0,98287.0,0.52273015]
[1733906582784,0.00365983,98288.0,98287.0,0.51105182]
[1733906583440,0.00365983,98288.0,98287.0,0.50405182]
[1733906583866,0.00365983,98288.0,98287.0,0.59025182]
[1733906584077,0.0004,98309.0,98289.0,0.10061452]
[1733906584078,3e-08,98290.0,98289.0,0.10061452]
[1733906584294,3e-08,98290.0,98289.0,0.35695689]
[1733906584506,0.00531095,98290.0,98289.0,0.35992776]
[1733906585391,0.00531095,98290.0,98289.0,0.36692776]
[1733906585861,0.00531095,98290.0,98289.0,0.37592776]
[1733906586083,0.00531095,98290.0,98289.0,0.36692776]
[1733906586511,0.00531095,98290.0,98289.0,0.37592776]
[1733906586716,0.00531095,98290.0,98289.0,0.36892776]
[1733906586946,0.00531095,98290.0,98289.0,0.37792776]
[1733906587572,0.00454638,98290.0,98289.0,0.35992776]
[1733906587777,0.00454638,98290.0,98289.0,0.36892776]
[1733906587983,0.00454638,98290.0,98289.0,0.37792776]
[1733906588229,0.00454638,98290.0,98289.0,0.89673961]
[1733906588645,0.00454638,98290.0,98289.0,0.99522973]
[1733906589696,0.00454638,98290.0,98289.0,0.90573961]
[1733906590115,0.00454638,98290.0,98289.0,1.04005793]
[1733906590329,0.00454638,98290.0,98289.0,0.90573961]
[1733906590811,0.00378181,98290.0,98289.0,0.90573961]
[1733906591230,1.8e-07,98290.0,98289.0,0.90573961]
[1733906591443,0.0004,98309.0,98298.0,0.22507652]
[1733906591669,0.0004,98309.0,98298.0,0.48040176]
[1733906591875,0.0004,98309.0,98298.0,0.48454638]
[1733906591876,0.10111122,98299.0,98298.0,0.48454638]
[1733906592719,0.10111122,98299.0,98298.0,0.49354638]
[1733906593619,8.58e-05,98310.0,98298.0,0.49354638]
[1733906593620,6.4e-07,98310.0,98309.0,0.17161452]
[1733906593832,6.4e-07,98310.0,98309.0,0.93196854]
[1733906594046,4e-08,98311.0,98310.0,0.503438]
[1733906594264,4e-08,98311.0,98310.0,0.7451912]
[1733906594493,4e-08,98311.0,98310.0,0.71192064]
[1733906594733,0.00531041,98311.0,98310.0,0.56192064]
[1733906595352,0.00531041,98311.0,98310.0,0.57092064]
[1733906595554,0.00531041,98311.0,98310.0,0.56192064]
[1733906595758,0.00531041,98311.0,98310.0,0.57092064]
[1733906596216,0.00531041,98311.0,98310.0,0.56192064]
[1733906596851,0.00531041,98311.0,98310.0,0.56792064]
[1733906597271,0.00531041,98311.0,98310.0,1.08973249]
[1733906597475,0.00531041,98311.0,98310.0,1.09873249]
[1733906597627,0.00531041,98311.0,98310.0,1.09673249]
[1733906598033,0.00531041,98311.0,98310.0,1.10573249]
[1733906598238,0.00531041,98311.0,98310.0,1.08973249]
[1733906598437,0.00531041,98311.0,98310.0,1.09873249]
[1733906599014,0.00512261,98311.0,98310.0,1.09873249]
[1733906599858,0.00512261,98311.0,98310.0,1.10573249]
[1733906601179,0.00512261,98311.0,98310.0,1.29494844]
[1733906601588,0.00512261,98311.0,98310.0,1.11586388]
[1733906601798,0.05,98333.0,98332.0,0.15]
[1733906602004,0.05,98333.0,98332.0,0.5538564]
[1733906602213,0.009324,98333.0,98332.0,0.5566359]
[1733906602434,3.1e-07,98360.0,98359.0,0.25101452]
[1733906602646,3.1e-07,98360.0,98359.0,1.23748761]
[1733906602861,0.00037304,98363.0,98362.0,0.37494452]
[1733906603080,8.8e-07,98379.0,98378.0,0.02161452]
[1733906603296,5.2e-07,98388.0,98387.0,0.37489252]
[1733906603508,5.2e-07,98388.0,98387.0,1.30802961]
[1733906603736,0.0887337,98393.0,98392.0,0.31661452]
[1733906603952,0.02735706,98402.0,98401.0,0.31661452]
[1733906604159,0.02735706,98402.0,98401.0,0.46843976]
[1733906604362,0.01160973,98402.0,98401.0,0.46843976]
[1733906604603,0.01160973,98402.0,98401.0,0.47252473]
[1733906605035,0.01160973,98402.0,98401.0,0.47307528]
[1733906605256,0.0034247,98430.0,98429.0,0.203192]
[1733906605475,0.0034247,98430.0,98429.0,0.47513176]
[1733906605691,0.0034247,98430.0,98429.0,0.27599139]
[1733906605914,0.21191987,98430.0,98429.0,0.10937687]
[1733906606372,0.21191987,98430.0,98429.0,0.00405163]
[1733906606583,0.203218,98417.0,98402.0,0.01661452]
[1733906606809,0.203218,98417.0,98407.0,0.10532524]
[1733906607232,0.406436,98417.0,98407.0,0.10532524]
[1733906607443,0.00872987,98430.0,98407.0,0.10532524]
[1733906607444,0.20323,98411.0,98407.0,0.10532524]
[1733906607715,0.20323,98411.0,98401.0,0.00055055]
[1733906607716,0.00872987,98430.0,98411.0,0.01661452]
[1733906607924,0.00872987,98430.0,98429.0,0.10532524]
[1733906608349,0.0034247,98430.0,98429.0,0.12295558]
[1733906609001,0.0034247,98430.0,98429.0,0.10532524]
[1733906610306,0.0034247,98430.0,98429.0,0.10632524]
[1733906610511,0.0034247,98430.0,98429.0,0.11232524]
[1733906610720,0.0034247,98430.0,98429.0,0.10532524]
[1733906610936,0.0034247,98430.0,98429.0,0.10832524]
[1733906611177,0.0034247,98430.0,98429.0,0.10932524]
[1733906611379,0.0034247,98430.0,98429.0,0.10632524]
[1733906611588,0.0034247,98430.0,98429.0,0.003]
[1733906611794,0.0034247,98430.0,98429.0,0.001]
[1733906612408,0.0034247,98430.0,98410.0,0.52781185]
[1733906612615,0.2066147,98430.0,98429.0,0.00503525]
[1733906612825,0.0034247,98430.0,98429.0,0.10632524]
[1733906613267,0.0034247,98430.0,98429.0,0.2623569]
[1733906613494,0.0044247,98430.0,98429.0,0.80275161]
[1733906613712,0.0044247,98430.0,98429.0,1.00697402]
[1733906613965,0.0064247,98430.0,98429.0,1.00697402]
[1733906614143,0.0054247,98430.0,98429.0,1.00697402]
[1733906614353,0.0034247,98430.0,98429.0,1.00697402]
[1733906614561,0.0034247,98430.0,98429.0,1.00897402]
[1733906614764,0.0034247,98430.0,98429.0,1.15697402]
[1733906615219,0.0034247,98430.0,98429.0,1.16597402]
[1733906615840,0.00251524,98439.0,98438.0,0.51978752]
[1733906616060,0.00073871,98460.0,98443.0,0.01661452]
[1733906616288,1e-06,98449.0,98448.0,0.91910167]
[1733906616517,1e-06,98449.0,98448.0,1.00781239]
[1733906616723,1e-06,98449.0,98448.0,1.17863465]
[1733906616930,0.00073871,98460.0,98456.0,0.36975052]
[1733906617163,0.00069871,98460.0,98459.0,0.42193976]
[1733906617375,7.1e-07,98463.0,98462.0,0.46661452]
[1733906617592,7.1e-07,98463.0,98462.0,0.57193976]
[1733906617821,7.1e-07,98463.0,98462.0,0.57613148]
[1733906618041,2.2e-07,98470.0,98469.0,0.66972352]
[1733906618256,2.97646731,98499.0,98498.0,0.51966352]
[1733906618467,2.97646731,98499.0,98498.0,0.62498876]
[1733906618894,2.97646731,98499.0,98498.0,0.62912487]
[1733906619145,2.81388254,98499.0,98498.0,1.00351202]
[1733906619349,2.81388254,98499.0,98498.0,0.9868975]
[1733906619560,2.81388254,98499.0,98498.0,1.00406257]
[1733906619764,2.81388254,98499.0,98498.0,1.15406257]
[1733906619972,2.81388254,98499.0,98498.0,1.00406257]
[1733906620682,2.81388254,98499.0,98498.0,1.01206257]
[1733906620920,2.81388254,98499.0,98498.0,1.16206257]
[1733906621155,2.81388254,98499.0,98498.0,1.01306257]
[1733906621385,2.81388254,98499.0,98498.0,1.00406257]
[1733906621608,2.81388254,98499.0,98498.0,1.01906257]
[1733906621858,2.81388254,98499.0,98498.0,1.01006257]
[1733906622821,2.81388254,98499.0,98498.0,1.00406257]
[1733906623026,2.81388254,98499.0,98498.0,0.99544805]
[1733906623187,2.81388254,98499.0,98498.0,1.02106257]
[1733906623394,2.81388254,98499.0,98498.0,1.01206257]
[1733906623566,2.81388254,98499.0,98498.0,0.1100119]
[1733906623743,2.81388254,98499.0,98498.0,0.12087579]
[1733906623972,2.81388254,98499.0,98498.0,0.11187579]
[1733906624378,2.81388254,98499.0,98498.0,0.12087579]
[1733906624587,2.81388254,98499.0,98498.0,0.11187579]
[1733906624926,2.81918499,98499.0,98498.0,0.00055055]
[1733906625127,0.203105,98471.0,98470.0,0.52438715]
[1733906625329,0.203051,98497.0,98475.0,0.00055125]
[1733906625330,0.15,98489.0,98475.0,0.00055125]
[1733906625508,0.203093,98477.0,98476.0,0.10532524]
[1733906625705,0.203093,98477.0,98476.0,0.10904507]
[1733906626678,0.203093,98477.0,98476.0,0.00371983]
[1733906627120,0.203093,98477.0,98475.0,0.00055125]
[1733906627121,0.15,98476.0,98475.0,0.00055125]
[1733906627330,0.0119,98462.0,98429.0,0.52473315]
[1733906627511,0.15,98457.0,98430.0,0.10532524]
[1733906627720,0.203147,98451.0,98430.0,0.10958399]
[1733906628073,0.203147,98451.0,98430.0,0.10532524]
[1733906628885,0.13338548,98444.0,98431.0,0.00426592]
[1733906629085,0.406328,98443.0,98432.0,0.10532524]
[1733906629322,0.203163,98443.0,98432.0,0.10532524]
[1733906629692,0.406326,98443.0,98433.0,0.00426554]
[1733906629896,0.13338548,98444.0,98434.0,0.10532524]
[1733906630101,0.00255347,98444.0,98434.0,0.10532524]
[1733906630482,0.00055347,98444.0,98436.0,0.203176]
[1733906630681,0.00055347,98444.0,98437.0,0.10532524]
[1733906630860,0.00055347,98444.0,98437.0,0.10959]
[1733906630861,0.002,98443.0,98437.0,0.10959]
[1733906631133,0.00055347,98444.0,98437.0,0.10959]
[1733906631323,0.00155347,98444.0,98437.0,0.10959]
[1733906632155,0.00155347,98444.0,98437.0,0.10532524]
[1733906632563,0.00055347,98444.0,98438.0,0.00426457]
[1733906632764,0.00055347,98444.0,98439.0,0.10532524]
[1733906632957,0.00155347,98444.0,98439.0,0.10532524]
[1733906633096,0.00155347,98444.0,98439.0,0.10951241]
[1733906633727,0.00055347,98444.0,98439.0,0.10951241]
[1733906633986,0.00155347,98444.0,98439.0,0.10951241]
[1733906635256,0.00155347,98444.0,98443.0,0.12193976]
[1733906635607,0.00155347,98444.0,98443.0,0.12612485]
[1733906636171,0.00055347,98444.0,98443.0,0.12612485]
[1733906636372,0.00055347,98444.0,98443.0,0.12912485]
[1733906636835,0.00055347,98444.0,98443.0,0.13612485]
[1733906637714,0.00055347,98444.0,98443.0,0.11951033]
[1733906637931,0.00055347,98444.0,98443.0,0.01418509]
[1733906638143,0.00055347,98444.0,98443.0,0.01]
[1733906639204,0.00055347,98444.0,98443.0,0.007]
[1733906639452,0.00055347,98444.0,98424.0,0.01661452]
[1733906639697,0.00055347,98444.0,98443.0,0.005]
[1733906640136,0.00055347,98444.0,98430.0,0.10532524]
[1733906640340,0.00255347,98444.0,98431.0,0.20709673]
[1733906640548,0.00255347,98444.0,98432.0,0.10532524]
[1733906640751,0.203163,98443.0,98432.0,0.10923377]
[1733906640971,0.00055347,98444.0,98432.0,0.10923377]
[1733906641635,0.00055347,98444.0,98432.0,0.31241877]
[1733906642048,0.00055347,98444.0,98432.0,0.10923377]
[1733906642485,0.203163,98443.0,98432.0,0.10923377]
[1733906643097,0.00055347,98444.0,98432.0,0.10923377]
[1733906643314,0.203173,98438.0,98433.0,0.00381377]
[1733906643530,0.203164,98443.0,98434.0,0.10532524]
[1733906643736,0.203164,98443.0,98435.0,0.00381338]
[1733906643947,0.203173,98438.0,98436.0,0.10532524]
[1733906644164,0.00055347,98444.0,98437.0,0.003813]
[1733906644370,0.203165,98442.0,98438.0,0.10532524]
[1733906644595,0.203165,98442.0,98438.0,0.10913804]
[1733906645036,0.203169,98440.0,98438.0,0.10913804]
[1733906645659,0.00530562,98441.0,98438.0,0.10913804]
[1733906645880,0.203169,98440.0,98438.0,0.10913804]
[1733906646313,0.00530562,98441.0,98438.0,0.10913804]
[1733906646733,0.20847262,98441.0,98438.0,0.11013804]
[1733906647162,0.20847262,98441.0,98438.0,0.10913804]
[1733906647389,0.00530562,98441.0,98438.0,0.11013804]
[1733906647586,0.20847262,98441.0,98438.0,0.10913804]
[1733906647789,0.41163962,98441.0,98438.0,0.10913804]
[1733906648012,0.41163962,98441.0,98438.0,0.10532524]
[1733906648249,0.41163962,98441.0,98424.0,0.01661452]
[1733906648250,0.406365,98434.0,98424.0,0.01661452]
[1733906648453,0.406365,98434.0,98430.0,0.10532524]
[1733906648716,0.203182,98434.0,98430.0,0.10899167]
[1733906648957,0.203171,98439.0,98438.0,0.001]
[1733906649197,0.00530562,98441.0,98438.0,0.10632524]
[1733906649439,0.00530562,98441.0,98439.0,0.10532524]
[1733906649650,0.00530562,98441.0,98439.0,0.10898993]
[1733906650501,0.00530562,98441.0,98439.0,0.00366469]
[1733906650915,0.00530562,98441.0,98439.0,0.001]
[1733906651334,0.00530562,98441.0,98440.0,0.10532524]
[1733906651539,0.00530562,98441.0,98440.0,0.10875545]
[1733906652657,0.00530562,98441.0,98440.0,0.10975545]
[1733906653431,0.00454105,98441.0,98440.0,0.10975545]
[1733906653900,0.00454105,98441.0,98440.0,0.10786274]
[1733906657068,0.20770805,98441.0,98440.0,0.00443021]
[1733906657291,0.35770805,98441.0,98440.0,0.00443021]
[1733906657493,0.35770805,98441.0,98440.0,0.001]
[1733906658457,0.64109353,98441.0,98440.0,0.001]
[1733906658873,0.64109353,98441.0,98430.0,0.0001716]
[1733906658874,0.28338548,98431.0,98430.0,0.0001716]
[1733906659099,0.48657348,98431.0,98430.0,0.0001716]
[1733906659317,0.36070805,98441.0,98430.0,0.0001716]
[1733906659478,0.00454105,98441.0,98431.0,0.10532524]
[1733906659676,0.00454105,98441.0,98431.0,0.12193976]
[1733906659886,0.00454105,98441.0,98432.0,0.00345022]
[1733906660089,0.00454105,98441.0,98433.0,0.10532524]
[1733906660500,0.00754105,98441.0,98440.0,0.001]
[1733906660704,0.00454105,98441.0,98440.0,0.10532524]
[1733906660900,0.00454105,98441.0,98440.0,0.10877218]
[1733906661503,0.00123584,98441.0,98440.0,0.10877218]
[1733906661702,0.19906851,98442.0,98440.0,0.00344694]
[1733906662123,0.00055347,98444.0,98430.0,0.0001716]
[1733906662124,0.00055347,98444.0,98441.0,0.10532524]
[1733906662363,0.00055347,98444.0,98442.0,0.203165]
[1733906662519,0.00055347,98444.0,98443.0,0.10532524]
[1733906663023,0.00055347,98444.0,98443.0,0.10877167]
[1733906663346,0.00355347,98444.0,98443.0,0.10877167]
[1733906663502,0.00055347,98444.0,98443.0,0.10877167]
[1733906667847,0.00041257,98493.0,98478.0,0.203091]
[1733906668049,6e-07,98480.0,98479.0,0.12193976]
[1733906668254,0.00041257,98496.0,98495.0,0.01661452]
[1733906668459,0.00041257,98496.0,98495.0,0.47499476]
[1733906668666,0.00041257,98496.0,98495.0,0.45838024]
[1733906668864,0.00041257,98496.0,98495.0,0.31180765]
[1733906669098,2.81388254,98499.0,98495.0,0.10875265]
[1733906669296,2.81388254,98499.0,98496.0,0.10532524]
[1733906670266,2.81388254,98499.0,98497.0,0.203051]
[1733906670475,2.81388254,98499.0,98495.0,0.00305502]
[1733906670476,2.81388254,98499.0,98498.0,0.10532524]
[1733906670688,2.81388254,98499.0,98498.0,0.10521564]
[1733906672794,2.81388254,98499.0,98498.0,0.10921564]
[1733906673210,2.81388254,98499.0,98498.0,0.10521564]
[1733906673428,2.81388254,98499.0,98498.0,0.11021564]
[1733906673638,2.81388254,98499.0,98498.0,0.11221564]
[1733906674509,2.81388254,98499.0,98498.0,0.11210638]
[1733906674927,2.81388254,98499.0,98498.0,0.11010638]
[1733906675751,2.81388254,98499.0,98498.0,0.10510638]
[1733906675966,2.81588254,98499.0,98498.0,0.10510638]
[1733906676605,2.81388254,98499.0,98498.0,0.10710638]
[1733906676810,2.81388254,98499.0,98498.0,0.11210638]
[1733906677247,2.81388254,98499.0,98498.0,0.10710638]
[1733906677458,2.81388254,98499.0,98498.0,0.10810638]
[1733906678119,2.81388254,98499.0,98498.0,0.10610638]
[1733906678753,0.556098,98498.0,98495.0,5.502e-05]
[1733906680019,2.81388254,98499.0,98496.0,0.30837824]
[1733906680245,2.81388254,98499.0,98497.0,0.09971452]
[1733906680246,0.002,98498.0,98497.0,0.09971452]
[1733906680447,2.81388254,98499.0,98497.0,0.09971452]
[1733906680448,2.81388254,98499.0,98498.0,0.203049]
[1733906680656,2.81388254,98499.0,98498.0,0.30837424]
[1733906680888,2.81388254,98499.0,98498.0,0.31341565]
[1733906681103,2.81388254,98499.0,98498.0,0.33003017]
[1733906681319,2.81388254,98499.0,98498.0,0.52813017]
[1733906681756,2.45615754,98499.0,98498.0,1.05251732]
[1733906682654,2.45615754,98499.0,98498.0,1.06268994]
[1733906682864,2.45615754,98499.0,98498.0,1.09699934]
[1733906683072,2.45615754,98499.0,98498.0,1.10599934]
[1733906683276,2.45615754,98499.0,98498.0,1.1320223]
[1733906683710,2.45615754,98499.0,98498.0,1.07358083]
[1733906683942,2.45615754,98499.0,98498.0,1.07158083]
[1733906684576,2.45619754,98499.0,98498.0,1.07158083]
[1733906684803,2.45619754,98499.0,98498.0,0.99669369]
[1733906684981,2.45619754,98499.0,98498.0,1.01330821]
[1733906685220,2.45619754,98499.0,98498.0,0.99669369]
[1733906685425,2.45619754,98499.0,98498.0,1.02230821]
[1733906685836,2.45619754,98499.0,98498.0,1.00430821]
[1733906686041,2.45619754,98499.0,98498.0,0.98769369]
[1733906686249,2.45619754,98499.0,98498.0,1.02030821]
[1733906686461,2.45619754,98499.0,98498.0,0.99469369]
[1733906686687,2.45619754,98499.0,98498.0,0.86130821]
[1733906686890,2.45619754,98499.0,98498.0,0.34592106]